bitfinex-derivatives/quotes_ETHF0:USTF0_20250213
["timestamp","ask_amount","ask_price","bid_price","bid_amount"]
[1739430350565,3.2078,2680.0,2679.4,0.00276699]
[1739430350766,0.7463,2679.5,2679.4,0.00276699]
[1739430353468,5.07327,2680.0,2679.4,0.00276699]
[1739430353661,0.7463,2679.5,2679.4,0.00276699]
[1739430357571,0.74625,2679.7,2679.5,0.74628]
[1739430357770,0.74628,2679.6,2679.4,0.74907699]
[1739430357971,0.74627,2679.6,2679.5,0.74629]
[1739430358266,0.7463,2679.5,2679.4,0.74907699]
[1739430358465,0.7463,2679.5,2679.4,0.00276699]
[1739430359073,0.7463,2679.5,2679.4,0.74908699]
[1739430359263,1.86551,2679.9,2679.4,0.74908699]
[1739430359469,3.2078,2680.0,2679.4,0.00276699]
[1739430359667,0.74622,2679.8,2679.4,0.00276699]
[1739430359860,0.593,2680.1,2679.6,0.74625]
[1739430360066,0.7462,2679.9,2679.4,0.00276699]
[1739430360270,0.74629,2679.6,2679.4,0.00276699]
[1739430360572,0.7463,2679.5,2679.4,0.00276699]
[1739430361469,7.77750315,2679.5,2679.4,0.00276699]
[1739430361667,7.24300093,2679.5,2679.4,0.00276699]
[1739430361970,3.9541,2679.5,2679.4,0.00276699]
[1739430362165,7.24300093,2679.5,2679.4,0.00276699]
[1739430363869,7.24300093,2679.5,2679.4,0.74908699]
[1739430364067,3.28890093,2679.8,2679.4,0.00276699]
[1739430364270,3.28890093,2679.8,2679.6,0.74625]
[1739430364469,3.2078,2679.9,2679.4,0.00276699]
[1739430364671,3.95399,2679.9,2679.7,0.74622]
[1739430364971,0.74619,2679.9,2679.7,0.74622]
[1739430365177,0.593,2680.1,2679.4,3.21056699]
[1739430365469,0.74619,2679.9,2679.7,0.74622]
[1739430365675,0.593,2680.1,2679.4,3.21056699]
[1739430365875,0.7462,2679.9,2679.7,0.74623]
[1739430366076,0.74622,2679.8,2679.6,0.74626]
[1739430366574,3.88190093,2680.1,2679.4,3.21056699]
[1739430366777,3.28890093,2679.8,2679.4,3.21056699]
[1739430367077,0.7463,2679.5,2679.4,0.00276699]
[1739430367470,4.03520093,2679.5,2679.4,0.00276699]
[1739430368367,3.2078,2680.0,2679.4,0.00276699]
[1739430368573,0.74626,2679.7,2679.5,0.74629]
[1739430368778,3.2078,2680.0,2679.4,0.00276699]
[1739430368973,0.7463,2679.5,2679.4,0.00276699]
[1739430369881,0.74624,2679.7,2679.4,0.00276699]
[1739430370079,0.74627,2679.6,2679.4,0.74907699]
[1739430370278,0.74625,2679.7,2679.5,0.74628]
[1739430370477,0.74625,2679.7,2679.4,0.00276699]
[1739430370678,3.28890093,2679.8,2679.4,0.00276699]
[1739430371076,3.2078,2679.7,2679.4,0.00276699]
[1739430371279,0.74628,2679.6,2679.4,0.74907699]
[1739430371579,3.2078,2679.7,2679.4,0.00276699]
[1739430371784,0.74629,2679.6,2679.4,0.74908699]
[1739430371981,3.2078,2679.7,2679.6,0.74627]
[1739430372276,3.88190093,2680.1,2679.9,0.74619]
[1739430372277,3.2078,2680.0,2679.9,0.74619]
[1739430372883,3.2078,2680.0,2679.4,0.00276699]
[1739430373084,3.2078,2680.0,2679.9,0.74619]
[1739430373289,0.593,2680.1,2679.4,5.05356699]
[1739430373473,0.75159336,2680.6,2679.9,1.86547]
[1739430373785,0.00559336,2680.6,2680.5,0.74602]
[1739430374480,3.2078,2681.1,2680.5,0.74602]
[1739430374673,3.2078,2681.1,2680.8,0.74592]
[1739430374877,3.2078,2681.1,2680.4,6.49670093]
[1739430375076,3.95366,2681.1,2680.7,0.74595]
[1739430375488,3.2078,2681.1,2680.4,6.49670093]
[1739430375788,3.95366,2681.1,2680.7,0.74595]
[1739430376085,3.95366,2681.1,2680.6,0.00559336]
[1739430376380,3.2078,2681.1,2680.8,0.74593]
[1739430376574,3.2078,2681.1,2681.0,0.74588]
[1739430376779,3.2078,2681.1,2680.7,1.1078]
[1739430376982,3.2078,2681.1,2680.9,0.74589]
[1739430377780,0.00559336,2681.2,2680.7,1.1078]
[1739430377985,0.00559336,2681.2,2681.0,0.74587]
[1739430378784,0.00559336,2681.2,2681.1,0.74585]
[1739430378983,3.28890093,2682.2,2681.9,0.74562]
[1739430379187,3.28890093,2682.2,2681.4,5.0488]
[1739430379391,3.28890093,2682.2,2681.4,5.5882]
[1739430379890,3.28890093,2682.2,2681.9,0.74562]
[1739430380083,0.00559336,2682.1,2681.9,0.7456]
[1739430380587,0.00559336,2682.1,2681.5,40.8]
[1739430380789,0.00559336,2682.1,2682.0,0.7456]
[1739430381089,0.00559336,2682.1,2681.5,40.8]
[1739430381390,0.00559336,2682.1,2682.0,0.7456]
[1739430382179,0.00559336,2682.1,2681.4,7.45259]
[1739430382180,0.00559336,2682.1,2681.9,0.74562]
[1739430382379,0.00559336,2682.1,2681.7,3.2078]
[1739430382586,0.00559336,2682.1,2682.0,0.7456]
[1739430387195,3.2078,2682.7,2682.0,2.5726]
[1739430387489,3.2078,2682.7,2682.1,0.5807]
[1739430387997,3.2078,2682.7,2682.5,0.74545]
[1739430388287,3.2078,2682.7,2682.4,0.74547]
[1739430388288,3.95322,2682.7,2682.4,0.74547]
[1739430388492,3.95322,2682.7,2682.5,0.74546]
[1739430388694,3.2078,2682.7,2682.3,0.00559336]
[1739430388886,0.74549,2682.4,2682.3,0.00559336]
[1739430389091,3.95329,2682.4,2682.3,0.00559336]
[1739430391091,3.2078,2682.4,2682.3,0.00559336]
[1739430391296,3.95329,2682.4,2682.3,0.75111336]
[1739430391491,3.2078,2682.4,2682.3,0.75111336]
[1739430392287,3.95329,2682.4,2682.3,0.00559336]
[1739430392589,3.95329,2682.4,2682.3,0.75111336]
[1739430392990,3.2078,2682.4,2682.3,0.75111336]
[1739430393498,0.74542,2682.7,2682.6,0.74543]
[1739430393499,3.95321,2682.7,2682.6,0.74543]
[1739430393682,3.2078,2682.7,2682.3,0.75110336]
[1739430394086,0.74549,2682.5,2682.3,0.75110336]
[1739430394798,3.2078,2682.7,2682.3,0.00559336]
[1739430394996,0.74549,2682.4,2682.3,0.00559336]
[1739430395394,0.74545,2682.6,2682.5,0.74545]
[1739430395693,0.74545,2682.6,2682.5,0.74546]
[1739430395997,3.2078,2682.7,2682.6,0.74543]
[1739430397097,0.00559336,2682.9,2682.8,0.74538]
[1739430398186,3.2078,2683.3,2682.8,0.74538]
[1739430398388,3.7995,2683.6,2683.0,3.2078]
[1739430398592,3.7995,2683.6,2683.3,0.74523]
[1739430398999,3.7995,2683.6,2683.1,2.3821]
[1739430399195,3.2078,2683.6,2683.1,2.3821]
[1739430399493,3.21339336,2683.6,2683.5,0.74518]
[1739430399699,0.00559336,2683.6,2683.5,0.74518]
[1739430400195,0.74519,2683.5,2683.1,3.12739]
[1739430400990,0.75077336,2683.6,2683.1,3.12739]
[1739430401398,3.2078,2683.3,2683.0,40.8]
[1739430401599,3.28027872,2683.1,2682.3,0.00559336]
[1739430401785,3.2078,2682.7,2682.3,0.00559336]
[1739430401992,0.74542,2682.7,2682.3,0.75109336]
[1739430402199,4.02566872,2682.8,2682.4,0.74548]
[1739430402697,4.02566872,2682.8,2682.4,0.74549]
[1739430403085,3.28027872,2682.8,2682.3,0.00559336]
[1739430403291,3.95314,2683.0,2682.6,0.74543]
[1739430403493,3.95313,2683.0,2682.6,0.74542]
[1739430403799,0.74535,2682.9,2682.6,0.74542]
[1739430403990,3.95314,2683.0,2682.6,0.74542]
[1739430404188,0.5684,2683.2,2682.3,3.21339336]
[1739430404388,0.74538,2682.9,2682.5,0.74545]
[1739430404592,0.74538,2682.8,2682.5,0.74545]
[1739430405091,0.5684,2683.2,2682.3,3.21339336]
[1739430405296,0.74531,2683.1,2682.7,0.74539]
[1739430405487,0.5684,2683.2,2682.7,3.2078]
[1739430405689,0.5684,2683.2,2682.4,5.07153]
[1739430405889,0.5673,2683.5,2682.7,3.2078]
[1739430406093,1.1109,2683.5,2683.0,3.2078]
[1739430406295,1.1109,2683.5,2683.1,0.74528]
[1739430406296,1.85611,2683.5,2683.1,0.74528]
[1739430406601,1.1109,2683.5,2683.0,3.2078]
[1739430407101,0.74526,2683.3,2683.0,3.2078]
[1739430407492,1.1109,2683.5,2682.8,2.9217]
[1739430407493,1.1109,2683.5,2683.1,40.8]
[1739430407700,0.74522,2683.4,2683.1,41.54529]
[1739430407998,0.74522,2683.4,2682.8,2.9217]
[1739430407999,0.74525,2683.3,2683.0,0.74531]
[1739430408199,0.74528,2683.2,2682.9,0.74534]
[1739430408395,0.74528,2683.2,2682.8,2.9217]
[1739430408598,0.74525,2683.3,2683.0,0.74532]
[1739430408998,1.1109,2683.5,2682.8,1.1007]
[1739430409306,1.1109,2683.5,2682.8,41.9007]
[1739430409700,0.5436,2683.5,2683.3,0.74522]
[1739430409898,0.5436,2683.5,2683.0,3.2078]
[1739430410298,0.5436,2683.5,2683.2,0.74526]
[1739430410500,0.74524,2683.3,2683.1,0.74529]
[1739430410803,0.00559336,2683.6,2683.0,3.2078]
[1739430411003,0.00559336,2683.6,2683.5,0.74518]
[1739430411506,0.00559336,2683.6,2683.2,3.2078]
[1739430411701,0.74518,2683.5,2683.2,0.74525]
[1739430411900,0.00559336,2683.6,2683.2,3.2078]
[1739430412099,0.74519,2683.5,2683.2,3.95305]
[1739430412401,3.21339336,2683.6,2682.9,3.2078]
[1739430412601,3.21339336,2683.6,2683.5,0.74518]
[1739430413000,0.00559336,2683.6,2683.5,0.74518]
[1739430413497,3.2078,2683.9,2683.7,0.74512]
[1739430413698,3.2078,2683.9,2683.7,0.7451]
[1739430413904,3.2078,2683.9,2683.8,0.7451]
[1739430414196,3.2078,2683.9,2683.6,0.5484]
[1739430414602,0.00559336,2684.0,2683.9,0.74507]
[1739430416498,0.00559336,2684.0,2683.9,1.32997]
[1739430416703,3.2078,2684.4,2683.9,0.5849]
[1739430416892,3.95275,2684.4,2684.0,1.809]
[1739430417095,0.74497,2684.3,2684.0,2.55403]
[1739430417297,0.74497,2684.3,2683.9,0.5849]
[1739430417298,3.2078,2684.4,2683.9,0.5849]
[1739430417505,0.74504,2684.1,2683.9,0.5849]
[1739430417706,0.5848,2684.3,2683.9,0.5849]
[1739430417707,0.74505,2684.0,2683.9,0.5849]
[1739430418098,0.74499,2684.2,2683.9,1.32996]
[1739430418304,1.155,2684.3,2683.9,0.5849]
[1739430418502,0.745,2684.2,2683.9,1.32996]
[1739430418703,1.155,2684.3,2683.9,0.5849]
[1739430419003,0.74502,2684.2,2683.9,1.32997]
[1739430419403,0.74502,2684.1,2683.9,1.32997]
[1739430419603,0.74502,2684.1,2683.9,0.5849]
[1739430419807,0.74505,2684.0,2683.9,0.5849]
[1739430419993,0.74505,2684.0,2683.7,2.56071336]
[1739430419994,3.2078,2684.1,2683.7,0.00559336]
[1739430420701,3.2078,2684.1,2684.0,0.74505]
[1739430420999,0.5848,2684.3,2683.7,0.00559336]
[1739430421495,0.74503,2684.1,2683.9,0.74507]
[1739430421700,0.74506,2684.0,2683.8,0.74508]
[1739430422202,0.74508,2683.9,2683.7,0.00559336]
[1739430422403,0.74508,2683.9,2683.7,0.75070336]
[1739430422805,3.2078,2684.1,2683.7,0.00559336]
[1739430423200,0.74499,2684.2,2684.0,0.74502]
[1739430423503,0.5848,2684.3,2683.7,0.00559336]
[1739430423902,0.74501,2684.2,2683.9,0.74506]
[1739430424100,0.5848,2684.3,2683.9,0.74506]
[1739430424506,0.5848,2684.3,2683.8,40.8]
[1739430424805,0.5848,2684.3,2683.7,0.00559336]
[1739430425197,0.5848,2684.3,2683.7,40.80559336]
[1739430425398,0.74504,2684.1,2683.9,0.74507]
[1739430425902,0.5848,2684.3,2684.2,0.74499]
[1739430426209,3.2078,2684.4,2684.2,40.8]
[1739430426396,3.2078,2684.4,2684.3,0.74496]
[1739430427807,3.2078,2684.4,2683.9,0.5473]
[1739430427998,3.2078,2684.4,2684.3,0.74496]
[1739430428399,3.2078,2684.7,2684.2,1.798]
[1739430428600,0.74469,2685.3,2684.5,1.86227]
[1739430428805,3.27655946,2685.4,2684.8,0.74481]
[1739430429010,0.74476,2685.1,2684.7,0.74484]
[1739430429201,0.5475,2685.3,2684.6,0.00559336]
[1739430429401,0.74477,2685.0,2684.6,0.75045336]
[1739430429602,0.5475,2685.3,2684.6,0.00559336]
[1739430429603,3.7553,2685.3,2684.6,0.00559336]
[1739430430005,0.74482,2684.9,2684.6,0.00559336]
[1739430430206,0.74482,2684.9,2684.6,0.75045336]
[1739430430611,3.7553,2685.3,2684.6,0.00559336]
[1739430430799,0.74477,2685.0,2684.7,0.74484]
[1739430431000,0.74476,2685.1,2684.6,0.00559336]
[1739430431205,3.7553,2685.3,2684.6,0.00559336]
[1739430431708,3.2078,2685.3,2684.7,3.2078]
[1739430431903,3.2078,2685.3,2685.0,0.74475]
[1739430431904,3.9525,2685.3,2685.0,0.74475]
[1739430432110,0.74471,2685.2,2684.9,0.74478]
[1739430432309,3.2078,2685.3,2684.8,1.792]
[1739430432610,0.5552,2685.5,2684.8,1.792]
[1739430433018,0.5842,2685.7,2685.0,3.2078]
[1739430433214,0.74468,2685.4,2685.0,3.95254]
[1739430433411,0.74474,2685.1,2685.0,3.7765]
[1739430433720,0.74477,2685.0,2684.8,1.797]
[1739430433914,3.2078,2685.3,2684.8,1.797]
[1739430434215,0.7448,2684.9,2684.8,1.797]
[1739430434514,3.7784,2685.3,2684.8,1.797]
[1739430434717,0.74478,2685.0,2684.8,1.797]
[1739430435017,0.7448,2684.9,2684.8,1.797]
[1739430436418,0.74479,2685.0,2684.8,1.797]
[1739430436618,4.3601,2685.3,2684.8,1.797]
[1739430436811,0.7448,2684.9,2684.8,1.797]
[1739430437010,4.3601,2685.3,2684.8,1.797]
[1739430437206,0.74477,2685.0,2684.9,0.74478]
[1739430437415,4.3601,2685.3,2684.9,0.74478]
[1739430437617,0.74475,2685.1,2684.9,0.74478]
[1739430437820,0.7448,2684.9,2684.8,1.797]
[1739430438317,0.74478,2685.0,2684.8,2.54182]
[1739430438719,3.7784,2685.3,2684.8,1.797]
[1739430438916,3.7784,2685.3,2685.2,0.74471]
[1739430438917,0.5706,2685.3,2685.2,0.74471]
[1739430439117,0.5706,2685.3,2684.8,1.797]
[1739430439118,0.5836,2685.6,2684.8,1.797]
[1739430439422,0.74473,2685.2,2685.0,0.74476]
[1739430439918,0.5901,2685.5,2684.8,1.797]
[1739430440120,0.7448,2684.9,2684.8,1.797]
[1739430440313,1.86172,2685.3,2684.6,3.78209336]
[1739430440513,0.74485,2684.7,2684.6,5.56809336]
[1739430440816,0.74484,2684.8,2684.6,5.56809336]
[1739430441012,0.74484,2684.8,2684.6,6.31296336]
[1739430441214,0.5585,2685.0,2684.6,5.56809336]
[1739430441817,0.74485,2684.7,2684.6,5.56809336]
[1739430442014,0.74481,2684.9,2684.6,5.56809336]
[1739430442215,0.74483,2684.8,2684.7,0.74484]
[1739430442415,0.5585,2685.0,2684.6,5.56809336]
[1739430442616,0.74485,2684.7,2684.6,5.56809336]
[1739430443518,0.74485,2684.7,2684.6,0.00559336]
[1739430445121,3.95264,2684.8,2684.6,0.75045336]
[1739430445319,0.5368,2684.9,2684.6,0.00559336]
[1739430445519,3.2078,2685.3,2684.6,6.48995282]
[1739430445719,3.2078,2685.3,2684.7,0.5492]
[1739430445920,0.74474,2685.1,2684.8,0.7448]
[1739430446428,0.74474,2685.1,2684.7,0.5492]
[1739430446723,0.74474,2685.1,2684.8,0.74481]
[1739430446924,0.74474,2685.1,2684.7,0.5492]
[1739430447124,3.2078,2685.3,2684.9,0.7448]
[1739430447325,3.2078,2685.3,2684.7,0.5492]
[1739430447326,0.74473,2685.2,2685.0,0.74476]
[1739430447524,0.74473,2685.2,2684.7,0.5492]
[1739430447725,3.2078,2685.3,2684.9,0.74478]
[1739430447921,0.74473,2685.2,2684.9,0.74478]
[1739430448122,3.2078,2685.3,2684.7,0.5492]
[1739430448330,3.2078,2685.3,2685.0,0.74476]
[1739430448514,0.74474,2685.2,2684.9,0.74478]
[1739430448720,0.74474,2685.2,2685.0,0.74477]
[1739430448917,3.2078,2685.3,2684.8,0.74481]
[1739430449321,0.74477,2685.0,2684.8,0.74481]
[1739430449521,3.2078,2685.3,2684.7,0.5492]
[1739430450531,3.2078,2685.3,2684.7,1.29403]
[1739430450532,0.74479,2685.0,2684.7,1.29403]
[1739430450829,3.2078,2685.3,2684.7,0.5492]
[1739430451228,3.9525,2685.3,2685.1,0.74474]
[1739430451726,0.74475,2685.1,2684.9,0.74479]
[1739430451928,0.74478,2685.0,2684.8,0.74481]
[1739430452123,3.2078,2685.3,2684.8,0.74481]
[1739430452326,0.74471,2685.2,2684.9,0.74478]
[1739430452527,0.74475,2685.1,2684.9,0.74478]
[1739430453024,3.2078,2685.3,2684.8,0.7448]
[1739430453231,3.2078,2685.3,2685.2,0.74471]
[1739430453431,0.5596,2685.4,2685.3,0.74468]
[1739430453622,0.5565,2685.9,2685.3,3.2078]
[1739430454034,0.5565,2685.9,2685.4,40.8]
[1739430454223,0.5565,2685.9,2685.3,0.5916]
[1739430454426,0.5565,2685.9,2685.3,3.7994]
[1739430454623,0.5565,2685.9,2685.4,40.8]
[1739430455125,0.74455,2685.8,2685.6,0.74459]
[1739430455835,0.74455,2685.8,2685.5,0.7446]
[1739430456031,0.5565,2685.9,2685.4,40.8]
[1739430456227,3.2078,2686.3,2685.6,3.2078]
[1739430456431,0.74448,2686.1,2685.8,0.74453]
[1739430456631,3.2078,2686.3,2685.8,0.74453]
[1739430456832,0.74449,2686.0,2685.8,0.74453]
[1739430457030,0.74449,2686.0,2685.8,0.74454]
[1739430457334,0.7445,2686.0,2685.8,0.74454]
[1739430457531,0.7445,2686.0,2685.7,1.774]
[1739430457532,0.74451,2686.0,2685.7,2.51856]
[1739430458128,0.74451,2686.0,2685.7,1.774]
[1739430458336,0.74451,2686.0,2685.7,2.51856]
[1739430458531,3.7967,2686.3,2685.7,1.774]
[1739430458831,3.7967,2686.3,2686.1,0.74445]
[1739430459226,3.2078,2686.3,2686.1,0.74445]
[1739430459426,3.2078,2686.3,2686.2,0.74444]
[1739430459627,3.95221,2686.3,2685.9,0.5503]
[1739430459824,3.2078,2686.3,2686.0,0.00559336]
[1739430460128,3.2078,2686.3,2686.2,0.74444]
[1739430460532,1.28922,2686.7,2686.4,0.74437]
[1739430461034,0.74433,2686.6,2686.4,0.74437]
[1739430461232,3.2078,2686.9,2686.4,3.2078]
[1739430461531,0.74429,2686.8,2686.5,0.74434]
[1739430461933,5.07772,2687.0,2686.4,7.04335946]
[1739430462123,5.07772,2687.0,2686.7,0.74428]
[1739430462323,3.7714,2687.0,2686.5,0.5743]
[1739430462632,4.51562,2687.0,2686.7,0.74428]
[1739430462938,3.95202,2687.0,2686.8,40.8]
[1739430463428,3.95203,2687.0,2686.7,0.74429]
[1739430463632,0.74425,2686.9,2686.6,0.74431]
[1739430463929,1.1183,2687.3,2686.7,40.8]
[1739430464132,3.2078,2687.8,2687.1,3.2078]
[1739430464331,4.3381,2687.8,2687.1,3.79]
[1739430464638,0.74412,2687.4,2687.1,1.90068]
[1739430464931,7.61465946,2687.8,2687.1,1.1565]
[1739430465132,0.74414,2687.3,2687.1,1.1565]
[1739430465327,7.61465946,2687.8,2687.1,1.1565]
[1739430465732,0.74416,2687.2,2687.1,1.1565]
[1739430465930,0.74413,2687.3,2687.1,1.90068]
[1739430466125,0.74413,2687.3,2687.1,1.1565]
[1739430466331,0.74411,2687.4,2687.1,1.90066]
[1739430466526,3.2078,2687.5,2687.1,1.1565]
[1739430466730,0.74414,2687.3,2687.1,1.90068]
[1739430466944,0.74414,2687.3,2687.1,1.1565]
[1739430467132,3.2078,2687.5,2687.1,1.1565]
[1739430467331,3.2078,2687.5,2687.1,1.90067]
[1739430467531,0.74414,2687.3,2687.1,1.90067]
[1739430467833,3.2078,2687.5,2687.1,1.1565]
[1739430468336,0.74414,2687.3,2687.1,1.90068]
[1739430468534,0.74415,2687.3,2687.1,1.90068]
[1739430468735,0.74416,2687.2,2687.1,1.1565]
[1739430468932,3.2078,2687.5,2687.1,1.1565]
[1739430469133,3.2078,2687.5,2687.1,4.3643]
[1739430469337,3.2078,2687.5,2687.4,0.7441]
[1739430469538,0.74406,2687.6,2687.4,0.7441]
[1739430470139,0.74406,2687.6,2687.1,4.3643]
[1739430470140,3.796,2687.8,2687.1,4.3643]
[1739430470343,3.2078,2687.8,2687.3,3.27655946]
[1739430470541,3.9518,2687.8,2687.6,0.74403]
[1739430470733,3.9518,2687.8,2687.3,3.27655946]
[1739430470734,0.74405,2687.6,2687.5,1.773]
[1739430472646,0.74403,2687.7,2687.5,2.51706]
[1739430472943,0.74398,2687.9,2687.7,0.74401]
[1739430473439,1.1189,2688.2,2687.5,1.773]
[1739430473648,0.74403,2687.7,2687.5,1.773]
[1739430473841,0.74404,2687.7,2687.5,2.51707]
[1739430474043,0.74404,2687.7,2687.5,2.51706]
[1739430474244,3.2078,2688.1,2687.5,1.773]
[1739430474741,0.74401,2687.8,2687.7,0.74402]
[1739430475045,3.2078,2688.1,2687.5,1.773]
[1739430475245,0.74396,2688.0,2687.5,1.773]
[1739430475436,0.74397,2687.9,2687.8,0.74398]
[1739430475637,3.2078,2688.1,2687.5,1.773]
[1739430475842,0.74405,2687.6,2687.5,1.773]
[1739430476338,0.74402,2687.7,2687.6,0.74404]
[1739430476539,0.74401,2687.8,2687.6,0.74404]
[1739430476740,3.2078,2688.1,2687.5,1.773]
[1739430477240,0.74405,2687.6,2687.5,1.773]
[1739430477646,5.06763,2688.1,2687.5,1.773]
[1739430477842,0.74402,2687.7,2687.6,0.74404]
[1739430478241,0.744,2687.8,2687.7,0.74402]
[1739430478441,0.744,2687.8,2687.5,1.773]
[1739430478641,0.74401,2687.8,2687.7,0.74402]
[1739430478841,3.2078,2688.1,2687.5,1.773]
[1739430479347,0.74398,2687.9,2687.5,1.773]
[1739430479545,1.1189,2688.2,2687.5,1.773]
[1739430479742,0.74404,2687.7,2687.6,0.74403]
[1739430480249,0.74403,2687.7,2687.6,0.74404]
[1739430480446,8.34413946,2688.1,2687.4,4.98538275]
[1739430480642,0.74408,2687.5,2687.4,4.98538275]
[1739430481538,0.74408,2687.5,2687.4,3.21338275]
[1739430481735,6.48435946,2688.1,2687.4,3.21338275]
[1739430481939,3.2078,2688.1,2687.4,3.21338275]
[1739430482149,3.2078,2688.1,2687.6,0.74402]
[1739430482341,0.74403,2687.7,2687.6,0.74402]
[1739430482646,0.74405,2687.6,2687.5,42.572]
[1739430482840,1.31608,2688.2,2688.1,0.74391]
[1739430483039,0.5722,2688.2,2687.8,3.27655946]
[1739430483249,1.3161,2688.2,2688.1,0.74391]
[1739430483449,3.95164,2688.4,2687.9,3.2078]
[1739430483744,0.74387,2688.3,2687.9,3.2078]
[1739430483947,0.74387,2688.3,2688.2,0.74388]
[1739430484148,3.2078,2688.4,2687.9,3.2078]
[1739430484445,3.2078,2688.4,2688.2,0.74386]
[1739430484748,0.5955,2688.8,2688.2,0.74386]
[1739430484749,0.5955,2688.8,2688.3,1.1038]
[1739430485045,0.01303,2689.1,2688.7,6.48435946]
[1739430485246,0.01303,2689.1,2688.8,1.772]
[1739430485643,0.01303,2689.1,2688.7,3.2078]
[1739430485851,0.7437,2688.9,2688.8,1.772]
[1739430486148,0.74367,2689.0,2688.8,1.772]
[1739430486336,0.5676,2689.0,2688.8,1.772]
[1739430486539,0.74369,2688.9,2688.8,1.772]
[1739430487342,0.5676,2689.0,2688.8,1.772]
[1739430487850,1.31126,2689.0,2688.8,1.772]
[1739430488044,0.5676,2689.0,2688.8,2.51571]
[1739430488243,0.01303,2689.1,2688.8,4.9798]
[1739430488546,0.01303,2689.1,2689.0,0.74366]
[1739430488943,0.01303,2689.1,2689.0,41.54366]
[1739430489142,3.2078,2689.7,2689.0,40.8]
[1739430489342,3.2078,2689.7,2689.1,7.00589082]
[1739430489543,3.2078,2689.7,2689.4,0.74354]
[1739430489749,0.74346,2689.8,2689.4,2.51554]
[1739430490246,0.5823,2690.0,2689.5,3.2078]
[1739430490450,7.58779082,2690.4,2689.5,3.2078]
[1739430490451,3.7897,2690.4,2689.8,3.2078]
[1739430490649,3.79809082,2691.0,2690.3,0.74329]
[1739430490843,0.7432,2690.7,2690.3,0.74327]
[1739430491045,0.5452,2690.6,2690.3,0.74327]
[1739430491351,0.5452,2690.6,2690.3,0.74329]
[1739430491551,0.5452,2690.6,2690.2,0.74889275]
[1739430491746,0.74325,2690.5,2690.2,0.74323356]
[1739430491942,0.5452,2690.6,2690.1,5.5492]
[1739430492145,3.2078,2690.7,2690.1,5.5492]
[1739430492342,3.2078,2690.7,2690.6,0.74322]
[1739430492953,0.00554736,2690.9,2690.7,0.74317]
[1739430493254,0.00554736,2690.9,2690.8,0.74316]
[1739430493448,0.00554736,2690.9,2690.7,1.771]
[1739430493648,0.00554736,2690.9,2690.7,2.51417]
[1739430493852,0.00554736,2690.9,2690.7,1.771]
[1739430494051,0.00554736,2690.9,2690.4,3.21338275]
[1739430494248,0.00554736,2690.9,2690.5,1.771]
[1739430494444,0.00554736,2690.9,2690.4,3.21338275]
[1739430494653,0.00554736,2690.9,2690.4,0.00558275]
[1739430494856,1.31190736,2690.9,2690.5,0.74323]
[1739430495046,1.31189736,2690.9,2690.5,0.74323]
[1739430495252,1.31189736,2690.9,2690.4,0.00558275]
[1739430495253,0.56874736,2690.9,2690.7,0.74319]
[1739430495444,0.56874736,2690.9,2690.4,0.00558275]
[1739430495648,0.74318,2690.8,2690.4,0.00558275]
[1739430495845,0.74319,2690.7,2690.4,0.00558275]
[1739430496050,0.74318,2690.8,2690.4,0.74884275]
[1739430496253,1.31189736,2690.9,2690.5,0.74322]
[1739430496452,0.56874736,2690.9,2690.4,0.00558275]
[1739430496948,0.74325,2690.5,2690.4,0.00558275]
[1739430497551,3.2078,2690.7,2690.4,0.00558275]
[1739430497950,3.2078,2690.7,2690.6,0.74322]
[1739430498151,3.2078,2690.7,2690.4,0.00558275]
[1739430498351,0.00554736,2690.9,2690.8,0.74316]
[1739430499754,0.00554736,2690.9,2690.6,0.5777]
[1739430500053,0.74868736,2690.9,2690.7,0.74317]
[1739430500253,0.00554736,2690.9,2690.6,0.5777]
[1739430500456,0.00554736,2690.9,2690.8,0.74316]
[1739430500652,0.00554736,2690.9,2690.7,0.74317]
[1739430500850,0.00554736,2690.9,2690.6,3.2078]
[1739430501051,0.74319,2690.7,2690.6,3.2078]
[1739430501252,0.00554736,2690.9,2690.4,0.00558275]
[1739430501449,0.74325,2690.5,2690.4,0.00558275]
[1739430501853,0.58334736,2690.9,2690.4,0.00558275]
[1739430502058,0.74323,2690.6,2690.4,0.74885275]
[1739430502252,0.58334736,2690.9,2690.4,0.00558275]
[1739430502457,0.74323,2690.6,2690.4,0.00558275]
[1739430502861,3.2078,2690.8,2690.4,0.00558275]
[1739430503057,0.74325,2690.6,2690.4,0.74884275]
[1739430503256,1.2839,2690.7,2690.5,0.74324]
[1739430503458,3.95098,2690.8,2690.5,0.74324]
[1739430503660,3.95098,2690.8,2690.6,0.74321]
[1739430503860,0.00554736,2690.9,2690.5,3.2078]
[1739430504052,0.74869736,2690.9,2690.7,0.74317]
[1739430504255,0.00554736,2690.9,2690.5,3.2078]
[1739430504956,0.00554736,2690.9,2690.5,3.7634]
[1739430505157,0.00554736,2690.9,2690.5,3.2078]
[1739430505361,0.74322,2690.6,2690.5,3.2078]
[1739430506364,0.74321,2690.7,2690.5,3.95104]
[1739430507064,0.74321,2690.7,2690.6,0.74322]
[1739430507266,0.74324,2690.6,2690.4,0.74885275]
[1739430507469,0.74325,2690.5,2690.4,0.00558275]
[1739430509171,1.28425,2690.5,2690.4,0.00558275]
[1739430510067,0.00554736,2690.9,2690.4,4.98338275]
[1739430510274,0.74869736,2690.9,2690.8,0.74316]
[1739430510474,0.00554736,2690.9,2690.7,0.74318]
[1739430510871,0.00554736,2690.9,2690.8,0.74316]
[1739430513773,0.74868736,2690.9,2690.7,0.74318]
[1739430513963,0.00554736,2690.9,2690.7,0.74318]
[1739430514474,0.00554736,2690.9,2690.5,1.85873]